[Event "ESP-ch Teams Primera 2022"]
[Site "Sanxenxo Pontevedra"]
[Date "2022.09.20"]
[Round "4.8"]
[White "Narayanan.S.L"]
[Black "Suarez Gomez, Julio"]
[Result "1/2-1/2"]
[ECO "E10"]
[WhiteElo "2657"]
[BlackElo "2440"]
[Annotator "TA"]
[PlyCount "149"]
[EventDate "2022.09.17"]
[EventType "team-tourn"]
[EventCountry "ESP"]
[SourceTitle "playchess.com"]
[Source "ChessBase"]
[SourceQuality "1"]
[TimeControl "5400+30"]

{[%evp 9,149,22,22,23,31,31,30,0,29,25,35,30,35,35,35,34,36,33,39,9,33,39,43,46,46,50,35,29,61,62,73,73,66,74,66,63,68,60,83,0,41,37,35,35,41,34,37,35,35,35,42,6,16,0,48,40,37,34,47,33,43,37,41,16,22,0,29,29,25,25,24,22,25,25,24,22,36,17,26,16,18,17,26,20,13,13,13,13,13,13,23,22,36,0,0,0,0,0,5,0,8,0,0,-89,0,0,0,0,0,0,0,0,0,0,0,0,0,0,0,0,0,0,0,0,0,0,0,0,8,0,0,0,0,0,0,0,0,0,0,0,0,0]} 1. d4 Nf6 2. c4 e6 3. Nf3 a6 4. Nc3 d5 5. cxd5 exd5 {RECAPT} 6. Bg5 {CPLX 2.0. D37: Queen's Gambit Declined: 5 Bf4.} Be6 {CPLX 2.2 8 (Bf8-e7) (=4)} 7. e3 {BESTDEEP} Nbd7 {CPLX 2.4 0 (Bf8-d6) (=3)} 8. Bf4 {CPLX 2.2 30 (Bf1-d3) (=10). White has an edge.} h6 {CPLX 2.0 29 (Nf6-h5) (=9)} 9. h3 {CPLX 2.1 4 (Bf1-d3) (=9)} Be7 {CPLX 2.1 10 (Be6-f5) (=9)} 10. Bd3 {CPLX 2.1} c5 {CPLX 2.2 5 (0-0) (=9)} 11. dxc5 {CPLX 2.5} Nxc5 {RECAPT} 12. O-O {BESTDEEP} O-O {CPLX 2.7 2 (Ra8-c8) (=7)} 13. Nd4 {CPLX 2.8 3 (Ra1-c1) (=5)} Bd6 {[#] CPLX 3.0 6 (Rf8-e8) (=7)} 14. Bc2 $146 {CPLX 3.2 30 (Nc3-e2) (=7)} ({Predecessor:} 14. Bxd6 Qxd6 15. Bc2 Nce4 16. Nce2 Rac8 17. Nf4 Bd7 18. Bb3 Nc5 19. Bc2 Ne6 20. Nfe2 Nxd4 21. Nxd4 {1-0 (49) Deac,B (2679)-Vusatiuk,V (2308) Chess.com INT 2022}) 14... Re8 {CPLX 3.1 24 (Bd6xf4) (=8)} 15. Nce2 {BESTDEEP} Rc8 {CPLX 3.0 4 (Qd8-b6) (=8)} 16. Rc1 {BESTDEEP} Qb6 {CPLX 3.0 0 (Bd6xf4) (=7)} 17. Bxd6 {CPLX 3.0 0 (Nd4-b3) (=6)} Qxd6 {RECAPT} 18. Nf4 {CPLX 2.9 6 (Qd1-d2) (=6)} Qb6 {CPLX 2.9 32 (Be6-d7) (=9)} 19. Bf5 {[%cal Ob2b4] BESTDEEP} Bd7 {CPLX 3.1 11 (Rc8-c7) (=9)} 20. Bxd7 {CPLX 3.1} Ncxd7 {RECAPT} 21. Rxc8 {CPLX 2.7} Rxc8 {RECAPT} 22. Nf5 {[#] Ne7+ is the strong threat. CPLX 2.2} Qc5 {Against Ne7+. CPLX 3.0 5 (Rc8-e8) (=8)} 23. Qf3 {White is more active. CPLX 2.7 8 (Nf4-h5) (=5)} Kh7 {CPLX 2.7 23 (Kg8-f8) (=8)} 24. Rd1 {CPLX 3.4 83 (Nf4-h5) (=9)} ({Don't play} 24. Qg3 g6 25. Nd3 Qc7 26. Qxc7 Rxc7 $11) ({White should try} 24. Nh5 $16) 24... g6 {CPLX 3.4 41 (Nd7-e5) (=10)} (24... Ne5 $5 {[%cal Re5f3]} 25. Qg3 Rg8 $11) 25. Nd3 {Inhibits Ne5. BESTDEEP} Qf8 {BESTDEEP} 26. Nd4 {[%cal Od3e5] EASY} Qd6 {CPLX 2.2} 27. Nf4 {CPLX 2.4 7 (Rd1-d2) (=8)} Ne5 {CPLX 2.4 3 (Rc8-c7) (=9)} 28. Qe2 {CPLX 2.6} Nc6 {CPLX 2.3} 29. Qc2 {CPLX 2.5 0 (Qe2-d2) (=7)} Rc7 {[#] aiming for ...Nxd4. CPLX 3.0 7 (Nc6-e7) (=8)} 30. Nde6 {CPLX 3.0 36 (Rd1-c1) (=8)} Re7 {CPLX 4.6} 31. Nd4 {CPLX 4.2 16 (Ne6-c5) (=9)} Rc7 $1 {Hoping for ...Nxd4. DEEPSTRONG} 32. Rc1 {CPLX 3.0} Ne8 {Strongly threatening ...Nxd4. BESTDEEP} 33. Qd1 {CPLX 2.9 3 (Nd4xc6) (=8)} Nf6 {CPLX 2.6 13 (Nc6xd4) (=8)} 34. Nf3 {CPLX 2.5 14 (a2-a3) (=8)} Rd7 {BESTDEEP} 35. Ne2 {Prevents d4. CPLX 2.5 6 (Qd1-a4) (=8)} Ne4 {CPLX 2.1 4 (Rd7-c7) (=7)} 36. Ned4 {CPLX 2.6 25 (Qd1-c2) (=9)} Rc7 {CPLX 2.7} 37. Ne2 {CPLX 2.7 22 (Nd4-b3) (=9)} Rd7 {BESTDEEP} 38. a3 {CPLX 2.6 0 (Qd1-c2) (=9)} Qf6 {CPLX 2.6} 39. Ned4 {CPLX 2.7 0 (Rc1-c2) (=9)} Nxd4 {CPLX 2.8 0 (Rd7-c7) (=6)} 40. Qxd4 {RECAPT} Qxd4 {RECAPT} 41. Nxd4 $11 {[%mdl 4096] Endgame KRN-KRN. RECAPT} Kg7 {CPLX 2.0} 42. Kf1 {CPLX 2.0 2 (f2-f3) (=8)} Kf6 {CPLX 2.0 14 (h6-h5) (=6)} 43. Ke2 {CPLX 2.0 19 (g2-g4) (=8)} Ke7 {CPLX 2.0 9 (h6-h5) (=6)} 44. f3 {CPLX 2.0 10 (g2-g4) (=8)} Nd6 {CPLX 2.0} 45. b3 {CPLX 2.0 1 (h3-h4) (=8)} h5 {CPLX 2.0 9 (Nd6-e8) (=6)} 46. Kd3 {CPLX 2.0 6 (h3-h4) (=8)} Ne8 {BESTDEEP} 47. Rc8 {CPLX 2.0 0 (g2-g4) (=8)} Rc7 {CPLX 2.0} 48. Rb8 {CPLX 2.2} Nd6 {CPLX 2.0 0 (Ne8-f6) (=6)} 49. Ne2 {CPLX 2.0} Rc8 {CPLX 2.0 10 (Nd6-b5) (=6)} 50. Rxc8 {EASY} Nxc8 {KN-KN. RECAPT} 51. h4 {CPLX 2.0 36 (g2-g4) (=8)} Kd6 {BESTDEEP} 52. g4 {CPLX 2.0 0 (Kd3-c3) (=8)} Ne7 {CPLX 2.0} 53. Nf4 {CPLX 2.0 0 (g4xh5) (=8)} Ke5 {MISS-h5xg4 5 (h5xg4) (=6)} 54. a4 {CPLX 2.0 5 (Kd3-e2) (=8)} b6 {CPLX 2.0 8 (h5xg4) (=6)} 55. Ne2 {CPLX 2.0 8 (Kd3-e2) (=8)} Nc6 {CPLX 2.0} 56. Ng3 {RELBLUND 89 (g4xh5) (=9)} (56. gxh5 $11 gxh5 57. Kc3) 56... Ne7 {CPLX 2.0 89 (h5xg4) (=7)} (56... hxg4 $17 57. fxg4 Kd6) 57. f4+ {MISS-g4xh5 0 (g4xh5) (=9). The position is equal.} Ke6 {CPLX 2.0 0 (Ke5-d6) (=7)} 58. gxh5 {CPLX 2.0 0 (f4-f5) (=9)} gxh5 {RECAPT} 59. Nxh5 {RECAPT} Nf5 {Prevents Ng7+. EASY} 60. e4 {CPLX 2.0 0 (b3-b4) (=9)} dxe4+ {CPLX 2.4} 61. Kxe4 Nxh4 62. Ng7+ Kf6 63. Ne8+ Ke7 64. Nc7 Kd6 65. Nxa6 {Black must now prevent f5.} f5+ 66. Ke3 Ng2+ 67. Kf3 Ne1+ 68. Kf2 Nc2 69. b4 Kd5 70. b5 Kc4 71. Ke2 Nd4+ 72. Ke3 Ne6 73. Nb8 {Threatens to win with Nd7.} Kb4 74. Nd7 Kxa4 75. Nxb6+ {Weighted Error Value: White=0.11 (very precise) /Black=0.07 (flawless)} 1/2-1/2

[Event "ESP-ch Teams Primera 2022"]
[Site "Sanxenxo Pontevedra"]
[Date "2022.09.20"]
[Round "4.9"]
[White "Laiz Ibanez, Hector"]
[Black "Fier, Alexandr"]
[Result "0-1"]
[ECO "B52"]
[WhiteElo "2327"]
[BlackElo "2583"]
[Annotator "TA"]
[PlyCount "86"]
[EventDate "2022.09.17"]
[EventType "team-tourn"]
[EventCountry "ESP"]
[SourceTitle "playchess.com"]
[Source "ChessBase"]
[SourceQuality "1"]
[TimeControl "5400+30"]

{[%evp 9,86,4,8,1,12,0,0,0,0,0,-10,-12,4,-13,-12,-16,-8,-17,0,-10,0,-10,8,-22,0,0,-15,-7,-23,-15,0,0,0,14,7,0,25,6,20,0,-7,-22,-18,-56,0,0,0,0,0,0,0,0,0,0,9,0,0,0,2,0,5,0,0,-93,-17,-186,-141,-194,-114,-96,-82,-91,-75,-65,-75,-826,-700,-681,-606]} 1. e4 {[%emt 0:00:07]} c5 {[%emt 0:00:05]} 2. Nf3 {[%emt 0:00:07]} d6 {[%emt 0:00:04]} 3. Bb5+ {[%emt 0:00:25]} Bd7 {[%emt 0:00:06]} 4. c4 {[%emt 0:00:05]} Nf6 {[%emt 0:00:05]} 5. Nc3 {[%emt 0:00:09]} a6 {[%emt 0:00:05] CPLX 2.4} 6. Bxd7+ {[%emt 0:00:18] CPLX 2.6. B52: Sicilian: Moscow Variation with 3...Bd7.} Nbxd7 {[%emt 0:00:05][%cal Bb8d7,Bd7e5,Be5c6,Bc6b4][%mdl 32] RECAPT} 7. O-O {[%emt 0:03:47] BESTDEEP} e6 {[%emt 0:00:37] CPLX 2.0} 8. d3 {[%emt 0:06:39] The position is equal.} Be7 {[%emt 0:00:10] CPLX 2.0} 9. Kh1 {[%emt 0:03:34]} O-O {[%emt 0:00:08] CPLX 2.0} 10. Ng1 {[%emt 0:00:29] [#] CPLX 2.1 2 (h2-h3) (=0)} Rb8 $146 {[%emt 0:12:08] CPLX 2.1 16 (Nd7-b8) (=3)} ({Predecessor:} 10... d5 11. f4 d4 12. Nce2 b5 13. b3 Rb8 14. e5 Ne8 15. Ng3 bxc4 16. bxc4 Qa5 {1-0 (62) Kilgus,G (2460)-Miron,L (2507) Chess.com INT 2020}) 11. a4 {[%emt 0:08:25] CPLX 2.1 17 (f2-f4) (=3)} Ne5 {CPLX 2.2} 12. f4 {[%emt 0:00:48] BESTDEEP} Nc6 {[%emt 0:00:10] CPLX 2.5} 13. g4 {[%emt 0:07:47] BESTDEEP} Nb4 {[%emt 0:02:05] CPLX 2.2 17 (Rb8-c8) (=4)} 14. g5 {[%emt 0:10:04] CPLX 2.4} Ne8 {[%emt 0:00:39] MISS-Nf6-d7 10 (Nf6-d7) (=4)} 15. Nf3 {[%emt 0:10:25] CPLX 2.4} f5 {[%emt 0:09:46] BESTDEEP} 16. gxf6 {[%emt 0:00:24] CPLX 2.6 30 (e4xf5) (=4)} Nxf6 {[%emt 0:00:06] RECAPT 22 (Be7xf6) (=5)} 17. Ng5 {[%emt 0:11:37][%cal Bf3g5,Bg5h3,Bh3f2][%mdl 32] CPLX 2.4} Qd7 {[%emt 0:00:11] CPLX 2.9} 18. Qf3 {[%emt 0:01:56] CPLX 2.9 0 (Rf1-g1) (=4)} h6 {[%emt 0:04:51] CPLX 2.9 0 (Nb4-c2) (=5)} 19. Nh3 {[%emt 0:00:01] CPLX 3.1} Rf7 {[%emt 0:00:44] CPLX 2.5 15 (Qd7-e8) (=5)} 20. Nf2 {[%emt 0:04:19] CPLX 2.5 0 (Rf1-g1) (=3)} Rbf8 {[%emt 0:00:15] CPLX 2.5 0 (Nb4-c2) (=5)} 21. Rg1 {[%emt 0:03:41] BESTDEEP} Kh8 {[%emt 0:00:08] CPLX 2.7 0 (d6-d5) (=5)} 22. Qh3 {[%emt 0:00:48] CPLX 2.6 7 (Bc1-d2) (=3)} Nh7 {[%emt 0:01:24] CPLX 2.9 25 (d6-d5) (=6)} 23. Ng4 {[%emt 0:08:09] CPLX 2.8 19 (Bc1-d2) (=4)} Bf6 {[%emt 0:02:36] CPLX 2.7 14 (Nh7-f6) (=6)} 24. Nxf6 {[%emt 0:00:41] CPLX 2.9 20 (Bc1-d2) (=5)} Nxf6 {[%emt 0:00:05] RECAPT} 25. Bd2 {[%emt 0:00:44] CPLX 2.9 15 (Rg1-g6) (=6)} d5 {[%emt 0:00:50] [#] And now ...dxc4 would win. BESTDEEP} 26. e5 {[%emt 0:07:09] CPLX 3.4 38 (Rg1-g2) (=7)} Ng8 {[%emt 0:00:56] RELBLUND 56 (Nf6-e8) (=8)} (26... Ne8 $15 27. cxd5 Nxd5) 27. cxd5 $11 {[%emt 0:08:42] CPLX 3.2} Nxd5 {[%emt 0:00:06] RECAPT} 28. Ne4 {[%emt 0:00:02] CPLX 3.1} Nxf4 {[%emt 0:00:28] CPLX 3.0} 29. Bxf4 {[%emt 0:00:21] RECAPT} Rxf4 {[%emt 0:00:05] RECAPT} 30. Nxc5 {[%emt 0:00:54] DEEPSTRONG} Qd5+ {[%emt 0:06:02] CPLX 4.3} 31. Qg2 {[%emt 0:00:02] EASY} Re8 {[%emt 0:00:06] BESTDEEP} 32. Qxd5 {[%emt 0:01:34] CPLX 4.7 9 (a4-a5) (=6)} (32. a5 {looks sharper.} Rb4 33. Qxd5 exd5 34. d4) 32... exd5 {[%emt 0:00:02] RECAPT} 33. Rae1 {[%emt 0:02:13] CPLX 2.2 0 (Ra1-f1) (=6)} Rb4 {[%emt 0:00:04] CPLX 2.2 2 (Re8-e7) (=6)} 34. Rg6 {[%emt 0:00:32] CPLX 2.2 2 (b2-b3) (=5)} Rc8 {[%emt 0:02:54] CPLX 2.4 5 (Rb4xb2) (=6)} 35. Nd7 {[%emt 0:00:29] MISS-Nc5-e6 5 (Nc5-e6) (=5)} Rxb2 {[%emt 0:00:29] CPLX 2.3 0 (Ng8-e7) (=6)} 36. Rf1 {[%emt 0:00:31] RELBLUND 93 (Rg6-g2) (=8)} (36. Rg2 $11 Rxg2 37. Kxg2) 36... Ne7 {[%emt 0:00:52] RELBLUND 76 (Rc8-c2) (=8)} (36... Rcc2 $17 37. h4 Rh2+ 38. Kg1 Rxh4) 37. Re6 $2 {[%emt 0:00:21] RELBLUND 169 (Rg6-g2) (=13)} (37. Rg2 $11 Rxg2 38. Kxg2) 37... Nf5 {[%emt 0:00:21] aiming for ...Nh4. CPLX 2.7 45 (Rc8-c2) (=9)} 38. Rg6 {[%emt 0:00:37] MISS-Re6-b6 53 (Re6-b6) (=15)} (38. Rb6 $17 {keeps fighting.} Ra2 39. Kg1) 38... Ne3 {[%emt 0:00:41] CPLX 2.7 80 (Kh8-h7) (=11)} ({Black should play} 38... Kh7 $19 39. Rb6 Re2) 39. Re1 $17 {[%emt 0:00:01] CPLX 2.8} d4 $36 {[%emt 0:00:44][%mdl 2048] White is under strong pressure. CPLX 2.8 14 (Kh8-h7) (=11)} 40. e6 {[%emt 0:00:48] CPLX 2.6} Re8 {[%emt 0:00:05] CPLX 2.8 16 (Rb2-f2) (=11)} 41. Reg1 {[%emt 0:00:32] CPLX 2.8} Re7 {[%emt 0:00:27] Black is more active. BESTDEEP} 42. Rxh6+ $2 {[%emt 0:00:40][%mdl 8192] RELBLUND 400 (h2-h3) (=24)} gxh6 $19 {[%emt 0:00:40] RECAPT} 43. Nf6 {[%emt 0:00:02] [#] EASY} Rg2 $1 {[%emt 0:00:11] Weighted Error Value: White=0.32/Black=0.14 (very precise)} 0-1

[Event "ESP-ch Teams Primera 2022"]
[Site "Sanxenxo Pontevedra"]
[Date "2022.09.20"]
[Round "4.10"]
[White "Adla, Diego"]
[Black "Abal Cores, Lucas"]
[Result "1-0"]
[ECO "A21"]
[WhiteElo "2393"]
[BlackElo "2291"]
[Annotator "ChessBase"]
[PlyCount "59"]
[EventDate "2022.09.17"]
[EventType "team-tourn"]
[EventCountry "ESP"]
[SourceTitle "playchess.com"]
[Source "ChessBase"]
[SourceQuality "1"]
[TimeControl "5400+30"]

1. c4 e5 2. Nc3 d6 3. Nf3 f5 4. d3 Nf6 5. g3 Be7 6. Bg2 O-O 7. O-O a5 8. a3 Na6 9. b4 c6 10. b5 Nc7 11. bxc6 bxc6 12. Rb1 Ne6 13. Nh4 f4 14. Bxc6 Ra6 15. Bg2 Ng5 16. Nf3 Nh3+ 17. Kh1 Qe8 18. Rb8 Qh5 19. Ne4 Ng4 20. Bxh3 Qxh3 21. Rg1 d5 22. cxd5 Nxh2 23. Nxh2 g5 24. Rg2 g4 25. gxf4 exf4 26. Bxf4 Rxf4 27. Rxc8+ Kg7 28. Rc7 Rg6 29. Rxe7+ Kf8 30. Re6 1-0

[Event "ESP-ch Teams Primera 2022"]
[Site "Sanxenxo Pontevedra"]
[Date "2022.09.20"]
[Round "4.11"]
[White "Rodriguez Ferreiros, Andres"]
[Black "Vega Gutierrez, Sabrina"]
[Result "0-1"]
[ECO "B40"]
[WhiteElo "2110"]
[BlackElo "2395"]
[Annotator "ChessBase"]
[PlyCount "86"]
[EventDate "2022.09.17"]
[EventType "team-tourn"]
[EventCountry "ESP"]
[SourceTitle "playchess.com"]
[Source "ChessBase"]
[SourceQuality "1"]
[TimeControl "5400+30"]

1. e4 c5 2. Nf3 e6 3. c3 d5 4. exd5 Qxd5 5. d4 Nf6 6. Be2 cxd4 7. cxd4 Nc6 8. Nc3 Qd6 9. O-O Be7 10. Bg5 O-O 11. Qd2 Rd8 12. Rfd1 Nd5 13. Rac1 h6 14. Bxe7 Qxe7 15. Ne5 Nxc3 16. Qxc3 Bd7 17. d5 exd5 18. Rxd5 Be8 19. Rcd1 Rxd5 20. Rxd5 Nb4 21. Rc5 Nxa2 22. Qc4 b6 23. Rd5 Nb4 24. Ng6 Qf6 25. Qxb4 Qxg6 26. Bd3 Qc6 27. Qd2 Rc8 28. h3 Qc1+ 29. Qxc1 Rxc1+ 30. Kh2 Kf8 31. Kg3 Rd1 32. Be4 Rxd5 33. Bxd5 Ke7 34. Kf4 Kd6 35. Ba2 a5 36. g4 a4 37. Ke4 Kc5 38. f4 b5 39. h4 Bd7 40. f5 f6 41. Kf4 Kd4 42. Be6 Be8 43. g5 b4 0-1

[Event "ESP-ch Teams Primera 2022"]
[Site "Sanxenxo Pontevedra"]
[Date "2022.09.20"]
[Round "4.12"]
[White "Vela Frago, Alberto"]
[Black "Suarez Gomez, Paula"]
[Result "1-0"]
[ECO "A13"]
[WhiteElo "2203"]
[BlackElo "1801"]
[Annotator "TA"]
[PlyCount "77"]
[EventDate "2022.09.17"]
[EventType "team-tourn"]
[EventCountry "ESP"]
[SourceTitle "playchess.com"]
[Source "ChessBase"]
[SourceQuality "1"]
[TimeControl "5400+30"]

{[%evp 20,76,11,0,16,0,0,0,0,0,20,22,26,0,38,16,38,29,56,54,139,139,141,145,151,152,225,95,101,98,141,152,139,143,127,130,115,0,155,152,156,143,164,123,290,178,162,190,361,400,348,129,340,258,729,710,1225,1081,29999]} 1. c4 e6 2. Nf3 d5 3. b3 Nf6 4. g3 Be7 5. Bg2 O-O 6. O-O b6 7. Bb2 Bb7 8. e3 dxc4 9. bxc4 c5 10. Qe2 Nc6 11. d4 cxd4 {A14: English Opening: 1...e6 with b3 by White.} 12. exd4 Rc8 13. Nbd2 Ba6 {The position is equal.} 14. Rac1 {[#]} Ne8 $146 ({Predecessor:} 14... Na5 15. Ne5 Nd7 16. Nb3 Nxe5 17. Nxa5 bxa5 18. dxe5 Qc7 19. Rc2 Rfd8 20. Rfc1 Bc5 {1-0 (57) Dolana,A (2359)-Rengifo Blancas,R (2131) Tornelo INT 2021}) 15. Rfd1 Nd6 16. Bf1 (16. Qe1 $5 {[%cal Rd4d5]}) 16... Na5 {aiming for ...Ndxc4.} 17. Ne5 Rc7 18. Qg4 {Strongly threatening c5.} Qc8 {[%cal Ra6c4]} 19. c5 bxc5 (19... Ne8 $1 $14) 20. dxc5 Nf5 21. Bxa6 Qxa6 22. Ne4 Nh6 {[#]} (22... Qb7 $16) 23. Qh5 (23. Qf4 $1 $18 Qb7 24. Bc3) 23... Qb7 $16 24. Qe2 {Nd6 is the strong threat.} Nc6 25. Nd6 Qa8 26. Nec4 {White is much more active. The black rooks are badly placed.} Rd8 27. Nb5 Rcd7 {[#]} 28. Nbd6 ({White should try} 28. Rxd7 $1 $16 Rxd7 29. Qf3) 28... Kf8 $2 (28... Rc7 $1 $11) 29. g4 {[%cal Bg3g4,Bg4g5][%mdl 32]} Bg5 30. Rc3 Bf6 31. Rg3 {Hoping for Bxf6.} Ng8 (31... Bxb2 $16 {is a better defense.} 32. Nxb2 (32. Qxb2 Rc7 $16) 32... Ne7) 32. Rh3 h6 33. Bxf6 Nxf6 (33... gxf6 34. Ra3 Rc7) 34. g5 $18 Ng8 35. Rf3 $2 ({Don't play} 35. g6 f6 36. Qxe6 Re7) (35. Qf3 $18) 35... Re7 $2 {A mistake that costs the game.} (35... hxg5 $16 {was called for.} 36. Qxe6 Nh6) 36. Qxe6 $40 {[%cal Rf3f7][%mdl 128] White attacks with force.} Rdd7 $2 (36... f6 37. Qd5 hxg5) 37. Qd5 {[%cal Oc4e5] And now Ne5! would win.} hxg5 {[#]} 38. Ne5 $1 {[%cal Re5g6][%mdl 512]} Rc7 (38... Nf6 39. Qxc6) 39. Ng6# {Weighted Error Value: White=0.40/Black=0.64} 1-0

[Event "ESP-ch Teams Primera 2022"]
[Site "Sanxenxo Pontevedra"]
[Date "2022.09.20"]
[Round "4.14"]
[White "Alonso Garcia, Aaron"]
[Black "Salgado Lopez, Ivan"]
[Result "1/2-1/2"]
[ECO "C65"]
[WhiteElo "2427"]
[BlackElo "2595"]
[Annotator "TA"]
[PlyCount "77"]
[EventDate "2022.09.17"]
[EventType "team-tourn"]
[EventCountry "ESP"]
[SourceTitle "playchess.com"]
[Source "ChessBase"]
[SourceQuality "1"]
[TimeControl "5400+30"]

{[%evp 9,77,15,16,14,16,9,16,13,11,0,0,-8,0,0,0,0,-11,0,-14,-16,-16,-37,-28,-37,-33,-35,-41,-36,-37,-27,-5,0,-36,-45,-56,-73,-73,-73,-86,-92,-82,-107,-108,-101,-94,-100,-89,-125,-125,-114,-20,-15,-23,-35,-40,-65,-19,-22,-26,-35,-41,-47,0,0,0,0,0,0,0,0]} 1. e4 {[%emt 0:00:32] Giri,Anish} e5 {[%emt 0:00:07]} 2. Nf3 {[%emt 0:00:08]} Nc6 {[%emt 0:00:05]} 3. Bb5 {[%emt 0:00:38]} Nf6 {[%emt 0:00:07]} 4. d3 {[%emt 0:00:42][%cal Bd2d3,Bd3d4][%mdl 32]} Bc5 {[%emt 0:00:11]} 5. Bxc6 {[%emt 0:01:05]} dxc6 {[%emt 0:00:11] RECAPT} 6. O-O {[%emt 0:00:05] BESTDEEP. C65: Ruy Lopez: Berlin Defence (3...Nf6), unusual lines and 4 0-0 Bc5.} Nd7 {[%emt 0:00:08] BESTDEEP} 7. c3 $1 {[%emt 0:00:05][%mdl 4] CPLX 2.1 7 (a2-a4) (=4) outshines the older 7.Nbd2.} Bd6 {[%emt 0:00:08] CPLX 2.2 7 (0-0) (=2)} 8. d4 {[%emt 0:00:16] CPLX 2.0 3 (Rf1-e1) (=3)} a5 {[%emt 0:00:08] [#] BESTDEEP} 9. Bg5 $146 {[%emt 0:11:05] CPLX 2.1 11 (Qd1-c2) (=5)} ({Predecessor:} 9. Re1 a4 10. Nbd2 exd4 11. cxd4 Nb6 12. Nf1 O-O 13. Bg5 f6 14. Bh4 Bg4 15. h3 {1-0 (50) Giri,A (2776)-So,W (2770) chess24.com INT 2021 CBM 201a [Giri,Anish]}) 9... f6 {[%emt 0:01:49] EASY} 10. Bh4 {[%emt 0:00:59] CPLX 2.5 8 (Bg5-e3) (=6)} Qe7 {[%emt 0:01:26] CPLX 2.2 8 (h7-h5) (=3)} 11. Nbd2 {[%emt 0:02:03][%cal Of3e5] EASY} g5 {[%emt 0:00:47] CPLX 2.2} 12. dxe5 {[%emt 0:04:24] MISS-Bh4-g3 0 (Bh4-g3) (=4)} Nxe5 {[%emt 0:00:14] RECAPT} 13. Nxe5 {[%emt 0:00:18] RECAPT} Bxe5 {[%emt 0:01:13] RECAPT} ({But not} 13... Qxe5 14. Qh5+ (14. Bg3 Qe6 $16) 14... Kd8 15. Bg3 $16) 14. Bg3 {[%emt 0:06:33] EASY} Bxg3 {[%emt 0:00:25] BESTDEEP} 15. Qh5+ {[%emt 0:05:15] CPLX 3.1 21 (f2xg3) (=5)} Qf7 {[%emt 0:00:18] CPLX 2.7} 16. Qxf7+ {[%emt 0:00:05] EASY} Kxf7 {[%emt 0:00:08] RECAPT} 17. fxg3 {[%emt 0:00:17] CPLX 2.3 2 (h2xg3) (=4)} Kg6 {[%emt 0:05:00] CPLX 2.0 0 (Rh8-f8) (=1)} 18. e5 {[%emt 0:08:38] BESTDEEP} f5 {[%emt 0:02:24] BESTDEEP} 19. g4 {[%emt 0:00:25] CPLX 2.0} Re8 {[%emt 0:07:32] CPLX 2.3 22 (Rh8-f8) (=2)} 20. gxf5+ {[%emt 0:04:18] CPLX 2.4} Bxf5 {[%emt 0:00:12] RECAPT} 21. Nf3 {[%emt 0:03:39] CPLX 2.0 9 (Ra1-e1) (=4)} c5 {[%emt 0:05:44] BESTDEEP} 22. Rad1 {[%emt 0:03:10] CPLX 2.0 17 (Ra1-e1) (=5)} Rad8 {[%emt 0:07:32] Inhibits Rd5. CPLX 2.1} 23. Rxd8 {[%emt 0:04:37] CPLX 2.3 0 (a2-a3) (=4)} Rxd8 $17 {[%emt 0:01:10][%mdl 4096] Endgame KRB-KRN. RECAPT} 24. Kf2 {[%emt 0:02:51] CPLX 2.0 6 (b2-b3) (=4)} b6 {[%emt 0:04:34] CPLX 2.0 10 (a5-a4) (=2)} 25. a3 {[%emt 0:01:15] CPLX 2.0 25 (h2-h3) (=5)} a4 {[%emt 0:02:24] CPLX 2.0} 26. Re1 {[%emt 0:06:31] CPLX 2.0 0 (h2-h3) (=5)} Be6 {[%emt 0:00:52] CPLX 2.0 7 (h7-h6) (=2)} 27. Ke3 {[%emt 0:01:52] CPLX 2.0 6 (Re1-e4) (=5)} Bc4 {[%emt 0:02:37] CPLX 2.0 11 (g5-g4) (=3)} 28. h4 {[%emt 0:07:45] CPLX 2.1 36 (Ke3-f2) (=7)} g4 {[%emt 0:05:53] CPLX 2.4} 29. Ng5 {[%emt 0:04:07] BESTDEEP} h6 {[%emt 0:15:37] RELBLUND 94 (Kg6-f5) (=6)} (29... Kf5 $17 {...g3 is the strong threat.} 30. e6 Re8) 30. Ne4 $11 {[%emt 0:00:08] EASY} Kf5 {[%emt 0:00:30] EASY} 31. Ng3+ $1 {[%emt 0:01:04] DEEPSTRONG} Ke6 {[%emt 0:03:35] BESTDEEP} 32. Nh5 $1 {[%emt 0:03:20] DEEPSTRONG} Kxe5 {[%emt 0:06:19] CPLX 2.3 46 (b6-b5) (=7)} (32... b5 $15 {should be considered.}) 33. Kf2+ {[%emt 0:00:16] CPLX 2.0} Kf5 {[%emt 0:01:02] CPLX 2.0} 34. Ng3+ {[%emt 0:00:20] EASY} Kf6 {[%emt 0:02:25] [#] White must now prevent ...Rd2+. CPLX 2.0} 35. Re4 $1 {[%emt 0:00:02][%csl LRc4,LRg4] DEEPSTRONG} Bb5 {[%emt 0:07:19] CPLX 2.1 47 (Bc4-b3) (=8)} ({Don't do} 35... Rd2+ 36. Ke1 Rxg2 37. Nh5+ Kg6 38. Nf4+ Kf5 39. Rxc4 $14) (35... Bb3 $15 {deserves consideration.}) 36. Rf4+ {[%emt 0:01:12] EASY. The position is equal.} Ke5 {[%emt 0:00:12] CPLX 2.0} 37. Re4+ {[%emt 0:00:51] EASY} Kf6 {[%emt 0:00:07] Strongly threatening ...Rd2+. CPLX 2.0 0 (Ke5-d5) (=8)} 38. Rf4+ {[%emt 0:00:01] EASY} Ke5 {[%emt 0:00:10] CPLX 2.0 0 (Kf6-e6) (=7)} 39. Re4+ {[%emt 0:00:01] Weighted Error Value: White=0.05 (flawless) /Black=0.11 (very precise)} 1/2-1/2